[Event "Titled Tuesday Blitz January 03 Early 2023"]
[White "Jobava, Baadur"]
[Black "Ohanyan, Emin"]
[WhiteFideId "13601520"]
[BlackFideId "13312022"]
[WhiteElo "2578"]
[BlackElo "2444"]
[Result "1-0"]
[Round "04"]
[TimeControl "180+2"]
[Date "2023.01.03"]
[WhiteClock "0:01:00"]
[BlackClock "0:00:13"]

1. d4 {[%clk 0:03:00]}  d5 {[%clk 0:02:58]} 2. Nc3 {[%clk 0:03:01]}  Nf6 {[%clk 0:02:58]} 3. Bf4 {[%clk 0:03:01]}  a6 {[%clk 0:02:57]} 4. e3 {[%clk 0:03:02]}  c5 {[%clk 0:02:53]} 5. h3 {[%clk 0:02:54]}  Nc6 {[%clk 0:02:49]} 6. Nf3 {[%clk 0:02:53]}  e6 {[%clk 0:02:43]} 7. a3 {[%clk 0:02:54]}  Bd6 {[%clk 0:02:43]} 8. dxc5 {[%clk 0:02:54]}  Bxc5 {[%clk 0:02:41]} 9. Bd3 {[%clk 0:02:55]}  O-O {[%clk 0:02:40]} 10. O-O {[%clk 0:02:55]}  Bd6 {[%clk 0:02:39]} 11. Re1 {[%clk 0:02:48]}  e5 {[%clk 0:02:12]} 12. Bg3 {[%clk 0:02:47]}  Re8 {[%clk 0:02:03]} 13. e4 {[%clk 0:02:45]}  d4 {[%clk 0:01:50]} 14. Nd5 {[%clk 0:02:44]}  Be6 {[%clk 0:01:18]} 15. Bh4 {[%clk 0:02:29]}  Bxd5 {[%clk 0:01:18]} 16. exd5 {[%clk 0:02:29]}  Nb8 {[%clk 0:01:19]} 17. Bxf6 {[%clk 0:02:00]}  Qxf6 {[%clk 0:01:18]} 18. Nxd4 {[%clk 0:01:59]}  Nd7 {[%clk 0:01:19]} 19. Nf5 {[%clk 0:01:42]}  Bc5 {[%clk 0:01:13]} 20. b4 {[%clk 0:01:38]}  Ba7 {[%clk 0:01:04]} 21. c4 {[%clk 0:01:36]}  g6 {[%clk 0:00:48]} 22. Nh6+ {[%clk 0:01:28]}  Kg7 {[%clk 0:00:46]} 23. Ng4 {[%clk 0:01:29]}  Qf4 {[%clk 0:00:44]} 24. c5 {[%clk 0:01:27]}  Qd4 {[%clk 0:00:32]} 25. Bf1 {[%clk 0:01:19]}  Qf4 {[%clk 0:00:22]} 26. Qc1 {[%clk 0:01:07]}  h5 {[%clk 0:00:17]} 27. Qxf4 {[%clk 0:01:05]}  exf4 {[%clk 0:00:18]} 28. Nh2 {[%clk 0:01:05]}  a5 {[%clk 0:00:18]} 29. Bb5 {[%clk 0:01:01]}  Rxe1+ {[%clk 0:00:18]} 30. Rxe1 {[%clk 0:01:02]}  Nf6 {[%clk 0:00:19]} 31. d6 {[%clk 0:01:02]}  axb4 {[%clk 0:00:19]} 32. axb4 {[%clk 0:01:03]}  Nd5 {[%clk 0:00:19]} 33. d7 {[%clk 0:01:01]}  Nc7 {[%clk 0:00:13]} 34. Re8 {[%clk 0:01:00]} 1-0


[Site "https://www.chess.com"]

[Event "Titled Tuesday Blitz January 03 Early 2023"]
[White "Paravyan, David"]
[Black "Gunina, Valentina"]
[WhiteFideId "4194985"]
[BlackFideId "4167570"]
[WhiteElo "2601"]
[BlackElo "2469"]
[Result "1-0"]
[Round "04"]
[TimeControl "180+2"]
[Date "2023.01.03"]
[WhiteClock "0:00:44"]
[BlackClock "0:00:09"]

1. e4 {[%clk 0:03:00]}  c6 {[%clk 0:03:00]} 2. d4 {[%clk 0:02:59]}  d5 {[%clk 0:03:00]} 3. e5 {[%clk 0:03:00]}  c5 {[%clk 0:03:00]} 4. Nf3 {[%clk 0:02:59]}  cxd4 {[%clk 0:02:59]} 5. Nxd4 {[%clk 0:03:00]}  Nc6 {[%clk 0:03:00]} 6. Nxc6 {[%clk 0:03:01]}  bxc6 {[%clk 0:03:00]} 7. Bd3 {[%clk 0:03:02]}  e6 {[%clk 0:02:56]} 8. O-O {[%clk 0:03:02]}  Ne7 {[%clk 0:02:48]} 9. Nd2 {[%clk 0:03:02]}  Ng6 {[%clk 0:02:44]} 10. Nf3 {[%clk 0:03:02]}  Be7 {[%clk 0:02:38]} 11. Re1 {[%clk 0:03:01]}  c5 {[%clk 0:02:27]} 12. c4 {[%clk 0:03:00]}  O-O {[%clk 0:02:24]} 13. cxd5 {[%clk 0:02:36]}  Qxd5 {[%clk 0:02:17]} 14. Be4 {[%clk 0:02:33]}  Qxd1 {[%clk 0:02:17]} 15. Rxd1 {[%clk 0:02:34]}  Rb8 {[%clk 0:02:17]} 16. b3 {[%clk 0:02:30]}  Bb7 {[%clk 0:02:01]} 17. Bxb7 {[%clk 0:02:28]}  Rxb7 {[%clk 0:02:02]} 18. Be3 {[%clk 0:02:29]}  Rc8 {[%clk 0:01:52]} 19. Rac1 {[%clk 0:02:29]}  h6 {[%clk 0:01:47]} 20. g3 {[%clk 0:02:28]}  Bf8 {[%clk 0:01:28]} 21. Rc4 {[%clk 0:02:24]}  Rb5 {[%clk 0:01:06]} 22. Ra4 {[%clk 0:01:59]}  Rb7 {[%clk 0:01:03]} 23. Rc1 {[%clk 0:01:53]}  Rc6 {[%clk 0:01:01]} 24. h4 {[%clk 0:01:49]}  Rbc7 {[%clk 0:00:58]} 25. Ra5 {[%clk 0:01:44]}  Be7 {[%clk 0:00:52]} 26. h5 {[%clk 0:01:31]}  Nf8 {[%clk 0:00:52]} 27. Nd2 {[%clk 0:01:31]}  Nd7 {[%clk 0:00:52]} 28. Nc4 {[%clk 0:01:32]}  Rb7 {[%clk 0:00:53]} 29. Ra4 {[%clk 0:01:27]}  Nb6 {[%clk 0:00:45]} 30. Na5 {[%clk 0:01:25]}  Nxa4 {[%clk 0:00:43]} 31. Nxc6 {[%clk 0:01:24]}  Nb6 {[%clk 0:00:40]} 32. Nxe7+ {[%clk 0:01:21]}  Rxe7 {[%clk 0:00:41]} 33. Bxc5 {[%clk 0:01:19]}  Rc7 {[%clk 0:00:40]} 34. Be3 {[%clk 0:01:19]}  Rxc1+ {[%clk 0:00:36]} 35. Bxc1 {[%clk 0:01:20]}  a6 {[%clk 0:00:33]} 36. Kg2 {[%clk 0:01:19]}  Nd5 {[%clk 0:00:29]} 37. Bd2 {[%clk 0:01:18]}  Kf8 {[%clk 0:00:29]} 38. Kf3 {[%clk 0:01:18]}  Ke7 {[%clk 0:00:29]} 39. Ke4 {[%clk 0:01:18]}  Kd7 {[%clk 0:00:29]} 40. f4 {[%clk 0:01:16]}  Kc6 {[%clk 0:00:28]} 41. g4 {[%clk 0:01:11]}  f6 {[%clk 0:00:22]} 42. f5 {[%clk 0:01:02]}  fxe5 {[%clk 0:00:20]} 43. Kxe5 {[%clk 0:01:02]}  exf5 {[%clk 0:00:18]} 44. Kxf5 {[%clk 0:01:02]}  Kd6 {[%clk 0:00:17]} 45. Kg6 {[%clk 0:00:56]}  Nf6 {[%clk 0:00:12]} 46. Bxh6 {[%clk 0:00:56]}  Nxg4 {[%clk 0:00:10]} 47. Bxg7 {[%clk 0:00:56]}  Ke6 {[%clk 0:00:08]} 48. h6 {[%clk 0:00:56]}  Nxh6 {[%clk 0:00:08]} 49. Bxh6 {[%clk 0:00:56]}  Kd5 {[%clk 0:00:09]} 50. Kf5 {[%clk 0:00:49]}  Kd4 {[%clk 0:00:08]} 51. Ke6 {[%clk 0:00:48]}  Kc3 {[%clk 0:00:08]} 52. Bg7+ {[%clk 0:00:45]}  Kc2 {[%clk 0:00:09]} 53. Kd5 {[%clk 0:00:45]}  Kb1 {[%clk 0:00:09]} 54. a4 {[%clk 0:00:44]} 1-0


[Site "https://www.chess.com"]

[Event "Titled Tuesday Blitz January 03 Early 2023"]
[White "Bryakin, Mikhail"]
[Black "Keymer, Vincent"]
[WhiteFideId "4165314"]
[BlackFideId "12940690"]
[WhiteElo "2455"]
[BlackElo "2700"]
[Result "0-1"]
[Round "04"]
[TimeControl "180+2"]
[Date "2023.01.03"]
[WhiteClock "0:00:14"]
[BlackClock "0:00:15"]

1. c4 {[%clk 0:03:00]}  Nf6 {[%clk 0:02:59]} 2. Nc3 {[%clk 0:02:58]}  e5 {[%clk 0:03:00]} 3. g3 {[%clk 0:02:57]}  Bb4 {[%clk 0:02:59]} 4. Nd5 {[%clk 0:02:55]}  Nxd5 {[%clk 0:02:53]} 5. cxd5 {[%clk 0:02:56]}  O-O {[%clk 0:02:53]} 6. Bg2 {[%clk 0:02:56]}  d6 {[%clk 0:02:45]} 7. e3 {[%clk 0:02:55]}  c5 {[%clk 0:02:41]} 8. Ne2 {[%clk 0:02:50]}  Nd7 {[%clk 0:02:35]} 9. O-O {[%clk 0:02:49]}  Nf6 {[%clk 0:02:30]} 10. f4 {[%clk 0:02:45]}  e4 {[%clk 0:02:16]} 11. Nc3 {[%clk 0:02:22]}  Re8 {[%clk 0:02:16]} 12. a3 {[%clk 0:02:21]}  Bg4 {[%clk 0:01:58]} 13. Qb3 {[%clk 0:02:12]}  Bxc3 {[%clk 0:01:58]} 14. dxc3 {[%clk 0:02:10]}  Qb6 {[%clk 0:01:31]} 15. Qa2 {[%clk 0:01:32]}  Be2 {[%clk 0:01:26]} 16. Re1 {[%clk 0:01:31]}  Bd3 {[%clk 0:01:25]} 17. c4 {[%clk 0:01:17]}  Qa5 {[%clk 0:01:06]} 18. Rd1 {[%clk 0:01:17]}  b5 {[%clk 0:01:02]} 19. Bd2 {[%clk 0:01:12]}  Qa6 {[%clk 0:00:57]} 20. cxb5 {[%clk 0:01:04]}  Qxb5 {[%clk 0:00:58]} 21. Bc3 {[%clk 0:00:55]}  Bc4 {[%clk 0:00:56]} 22. a4 {[%clk 0:00:53]}  Qa6 {[%clk 0:00:42]} 23. Bf1 {[%clk 0:00:52]}  Bxa2 {[%clk 0:00:27]} 24. Bxa6 {[%clk 0:00:50]}  Bb3 {[%clk 0:00:27]} 25. Rd2 {[%clk 0:00:44]}  Rab8 {[%clk 0:00:21]} 26. Bxf6 {[%clk 0:00:44]}  gxf6 {[%clk 0:00:20]} 27. Bb5 {[%clk 0:00:33]}  Re7 {[%clk 0:00:20]} 28. Rc1 {[%clk 0:00:31]}  f5 {[%clk 0:00:19]} 29. Rc3 {[%clk 0:00:31]}  Reb7 {[%clk 0:00:16]} 30. Bd7 {[%clk 0:00:14]}  Rxd7 {[%clk 0:00:15]} 0-1


[Site "https://www.chess.com"]

[Event "Titled Tuesday Blitz January 03 Early 2023"]
[White "Vokhidov, Shamsiddin"]
[Black "Zemlyanskii, Ivan"]
[WhiteFideId "14204223"]
[BlackFideId "24249971"]
[WhiteElo "2586"]
[BlackElo "2300"]
[Result "1-0"]
[Round "04"]
[TimeControl "180+2"]
[Date "2023.01.03"]
[WhiteClock "0:01:06"]
[BlackClock "0:00:01"]

1. e4 {[%clk 0:03:00]}  c5 {[%clk 0:03:00]} 2. Nf3 {[%clk 0:03:01]}  d6 {[%clk 0:03:00]} 3. Bb5+ {[%clk 0:03:00]}  Nd7 {[%clk 0:03:00]} 4. a4 {[%clk 0:03:00]}  Nf6 {[%clk 0:02:55]} 5. Nc3 {[%clk 0:03:00]}  a6 {[%clk 0:02:54]} 6. Be2 {[%clk 0:03:00]}  b6 {[%clk 0:02:52]} 7. d4 {[%clk 0:03:00]}  cxd4 {[%clk 0:02:52]} 8. Qxd4 {[%clk 0:03:01]}  e5 {[%clk 0:02:51]} 9. Qe3 {[%clk 0:03:01]}  Bb7 {[%clk 0:02:52]} 10. O-O {[%clk 0:03:01]}  Be7 {[%clk 0:02:52]} 11. Nd2 {[%clk 0:03:00]}  O-O {[%clk 0:02:53]} 12. Rd1 {[%clk 0:03:00]}  Qc7 {[%clk 0:02:51]} 13. Nc4 {[%clk 0:03:00]}  Nc5 {[%clk 0:02:49]} 14. Bf3 {[%clk 0:02:51]}  Rad8 {[%clk 0:02:45]} 15. b3 {[%clk 0:02:51]}  Bc6 {[%clk 0:02:24]} 16. Ba3 {[%clk 0:02:47]}  Rb8 {[%clk 0:02:04]} 17. Bb4 {[%clk 0:02:26]}  a5 {[%clk 0:01:44]} 18. Ba3 {[%clk 0:02:25]}  Rfd8 {[%clk 0:01:37]} 19. Rd2 {[%clk 0:02:24]}  Ne6 {[%clk 0:01:14]} 20. Ne2 {[%clk 0:02:02]}  Ne8 {[%clk 0:00:57]} 21. Bg4 {[%clk 0:01:54]}  Bg5 {[%clk 0:00:55]} 22. Qh3 {[%clk 0:01:32]}  Bxd2 {[%clk 0:00:52]} 23. Bxe6 {[%clk 0:01:32]}  Bg5 {[%clk 0:00:42]} 24. Bd5 {[%clk 0:01:31]}  Bxd5 {[%clk 0:00:42]} 25. exd5 {[%clk 0:01:32]}  b5 {[%clk 0:00:32]} 26. axb5 {[%clk 0:01:31]}  Rxb5 {[%clk 0:00:33]} 27. Nc3 {[%clk 0:01:31]}  Rbb8 {[%clk 0:00:32]} 28. Bb2 {[%clk 0:01:29]}  Rdc8 {[%clk 0:00:23]} 29. Rxa5 {[%clk 0:01:25]}  Ra8 {[%clk 0:00:20]} 30. Nb5 {[%clk 0:01:21]}  Qd8 {[%clk 0:00:11]} 31. Bc3 {[%clk 0:01:12]}  Nf6 {[%clk 0:00:04]} 32. Nbxd6 {[%clk 0:01:07]}  Rxa5 {[%clk 0:00:01]} 33. Bxa5 {[%clk 0:01:06]} 1-0


[Site "https://www.chess.com"]

[Event "Titled Tuesday Blitz January 03 Early 2023"]
[White "Zohid6"]
[Black "Dardha, Daniel"]
[BlackFideId "240990"]
[WhiteElo "2748"]
[BlackElo "2631"]
[Result "0-1"]
[Round "04"]
[TimeControl "180+2"]
[Date "2023.01.03"]
[WhiteClock "0:01:08"]
[BlackClock "0:00:13"]

1. d4 {[%clk 0:03:00]}  d5 {[%clk 0:02:58]} 2. Nc3 {[%clk 0:02:58]}  Nf6 {[%clk 0:02:57]} 3. Bf4 {[%clk 0:02:57]}  c5 {[%clk 0:02:57]} 4. e4 {[%clk 0:02:55]}  Nxe4 {[%clk 0:02:57]} 5. Nxe4 {[%clk 0:02:53]}  dxe4 {[%clk 0:02:58]} 6. dxc5 {[%clk 0:02:53]}  Qa5+ {[%clk 0:02:57]} 7. c3 {[%clk 0:02:54]}  Qxc5 {[%clk 0:02:57]} 8. Qa4+ {[%clk 0:02:54]}  Nc6 {[%clk 0:02:57]} 9. Qxe4 {[%clk 0:02:54]}  g6 {[%clk 0:02:57]} 10. Nf3 {[%clk 0:02:54]}  Bg7 {[%clk 0:02:58]} 11. Qe3 {[%clk 0:02:55]}  Qxe3+ {[%clk 0:02:57]} 12. Bxe3 {[%clk 0:02:56]}  O-O {[%clk 0:02:56]} 13. O-O-O {[%clk 0:02:56]}  Bf5 {[%clk 0:02:55]} 14. Bd3 {[%clk 0:02:55]}  Bxd3 {[%clk 0:02:55]} 15. Rxd3 {[%clk 0:02:56]}  Rfd8 {[%clk 0:02:54]} 16. Rhd1 {[%clk 0:02:56]}  a6 {[%clk 0:02:38]} 17. Bb6 {[%clk 0:02:55]}  Rxd3 {[%clk 0:02:37]} 18. Rxd3 {[%clk 0:02:55]}  Kf8 {[%clk 0:02:37]} 19. Rd7 {[%clk 0:02:55]}  Rb8 {[%clk 0:02:37]} 20. Kc2 {[%clk 0:02:34]}  Ke8 {[%clk 0:02:36]} 21. Rd1 {[%clk 0:02:32]}  Rc8 {[%clk 0:02:34]} 22. Kb3 {[%clk 0:02:33]}  h6 {[%clk 0:02:31]} 23. a4 {[%clk 0:02:27]}  g5 {[%clk 0:02:27]} 24. h3 {[%clk 0:02:25]}  e6 {[%clk 0:02:21]} 25. a5 {[%clk 0:02:21]}  f5 {[%clk 0:02:16]} 26. Ka4 {[%clk 0:02:11]}  Bf6 {[%clk 0:01:52]} 27. Rd6 {[%clk 0:02:06]}  Ke7 {[%clk 0:01:39]} 28. Bc5 {[%clk 0:02:03]}  Nd8 {[%clk 0:01:13]} 29. Bb4 {[%clk 0:02:02]}  Ke8 {[%clk 0:01:09]} 30. g4 {[%clk 0:01:45]}  Be7 {[%clk 0:00:45]} 31. Rb6 {[%clk 0:01:42]}  fxg4 {[%clk 0:00:44]} 32. hxg4 {[%clk 0:01:41]}  Rc4 {[%clk 0:00:41]} 33. Nd4 {[%clk 0:01:34]}  Bc5 {[%clk 0:00:27]} 34. Kb3 {[%clk 0:01:14]}  Rxd4 {[%clk 0:00:04]} 35. Bxc5 {[%clk 0:01:13]}  Rxg4 {[%clk 0:00:03]} 36. Rd6 {[%clk 0:01:13]}  Re4 {[%clk 0:00:02]} 37. f3 {[%clk 0:01:06]}  Re2 {[%clk 0:00:02]} 38. Bb6 {[%clk 0:01:03]}  Nc6 {[%clk 0:00:02]} 39. Kc4 {[%clk 0:01:01]}  h5 {[%clk 0:00:03]} 40. Kd3 {[%clk 0:01:01]}  Rxb2 {[%clk 0:00:02]} 41. Rxe6+ {[%clk 0:01:01]}  Kd7 {[%clk 0:00:02]} 42. Rg6 {[%clk 0:01:00]}  Ne5+ {[%clk 0:00:02]} 43. Ke4 {[%clk 0:00:59]}  Nxg6 {[%clk 0:00:03]} 44. Kf5 {[%clk 0:01:00]}  Ne7+ {[%clk 0:00:04]} 45. Kxg5 {[%clk 0:01:00]}  Rb5+ {[%clk 0:00:04]} 46. Kh4 {[%clk 0:01:00]}  Nc8 {[%clk 0:00:05]} 47. Bd4 {[%clk 0:00:59]}  Rf5 {[%clk 0:00:05]} 48. f4 {[%clk 0:01:00]}  Ke6 {[%clk 0:00:06]} 49. Be3 {[%clk 0:01:00]}  Nd6 {[%clk 0:00:07]} 50. Bd2 {[%clk 0:01:00]}  Nc4 {[%clk 0:00:08]} 51. Bc1 {[%clk 0:01:01]}  Nxa5 {[%clk 0:00:08]} 52. Bd2 {[%clk 0:01:02]}  Nc4 {[%clk 0:00:09]} 53. Bc1 {[%clk 0:01:03]}  Kd5 {[%clk 0:00:10]} 54. Kg3 {[%clk 0:01:02]}  Ke4 {[%clk 0:00:11]} 55. Kh3 {[%clk 0:01:03]}  a5 {[%clk 0:00:11]} 56. Kg3 {[%clk 0:01:04]}  a4 {[%clk 0:00:12]} 57. Kh3 {[%clk 0:01:05]}  b5 {[%clk 0:00:13]} 58. Kg3 {[%clk 0:01:05]}  a3 {[%clk 0:00:14]} 59. Kh4 {[%clk 0:01:06]}  a2 {[%clk 0:00:14]} 60. Bb2 {[%clk 0:01:06]}  Nxb2 {[%clk 0:00:14]} 61. Kg3 {[%clk 0:01:06]}  Nc4 {[%clk 0:00:15]} 62. Kh4 {[%clk 0:01:07]}  a1=Q {[%clk 0:00:16]} 63. Kg3 {[%clk 0:01:08]}  Qg1+ {[%clk 0:00:16]} 64. Kh3 {[%clk 0:01:08]}  Kf3 {[%clk 0:00:13]} 0-1


[Site "https://www.chess.com"]

[Event "Titled Tuesday Blitz January 03 Early 2023"]
[White "Kadric, Denis"]
[Black "Lenderman, Aleksandr"]
[WhiteFideId "14403803"]
[BlackFideId "2021285"]
[WhiteElo "2601"]
[BlackElo "2572"]
[Result "0-1"]
[Round "04"]
[TimeControl "180+2"]
[Date "2023.01.03"]
[WhiteClock "0:00:11"]
[BlackClock "0:00:24"]

1. e4 {[%clk 0:03:00]}  e5 {[%clk 0:03:00]} 2. Nf3 {[%clk 0:03:00]}  Nf6 {[%clk 0:03:00]} 3. d3 {[%clk 0:03:01]}  Nc6 {[%clk 0:02:58]} 4. c3 {[%clk 0:03:01]}  d5 {[%clk 0:02:58]} 5. Nbd2 {[%clk 0:03:01]}  a5 {[%clk 0:02:57]} 6. Be2 {[%clk 0:03:01]}  Bc5 {[%clk 0:02:54]} 7. O-O {[%clk 0:03:02]}  O-O {[%clk 0:02:54]} 8. h3 {[%clk 0:03:02]}  Qe7 {[%clk 0:02:52]} 9. exd5 {[%clk 0:03:00]}  Nxd5 {[%clk 0:02:52]} 10. Re1 {[%clk 0:03:00]}  Re8 {[%clk 0:02:45]} 11. Bf1 {[%clk 0:02:58]}  Qd8 {[%clk 0:02:45]} 12. Ne4 {[%clk 0:02:53]}  Bf8 {[%clk 0:02:42]} 13. Bd2 {[%clk 0:02:46]}  f6 {[%clk 0:02:40]} 14. Qc2 {[%clk 0:02:42]}  Be6 {[%clk 0:02:37]} 15. b3 {[%clk 0:02:29]}  Bf7 {[%clk 0:02:34]} 16. a3 {[%clk 0:02:29]}  Qd7 {[%clk 0:02:24]} 17. b4 {[%clk 0:02:27]}  axb4 {[%clk 0:02:25]} 18. axb4 {[%clk 0:02:28]}  Rab8 {[%clk 0:02:11]} 19. Ng3 {[%clk 0:02:17]}  Kh8 {[%clk 0:02:09]} 20. b5 {[%clk 0:02:09]}  Nd8 {[%clk 0:02:10]} 21. d4 {[%clk 0:02:09]}  exd4 {[%clk 0:02:09]} 22. Rxe8 {[%clk 0:02:07]}  Bxe8 {[%clk 0:02:09]} 23. Nxd4 {[%clk 0:02:08]}  Bg6 {[%clk 0:02:07]} 24. Qb3 {[%clk 0:02:04]}  Nb6 {[%clk 0:02:04]} 25. Be3 {[%clk 0:01:52]}  Bc5 {[%clk 0:02:02]} 26. Rd1 {[%clk 0:01:48]}  Qe8 {[%clk 0:01:58]} 27. Be2 {[%clk 0:01:28]}  Nf7 {[%clk 0:01:54]} 28. Bf4 {[%clk 0:01:00]}  Ne5 {[%clk 0:01:48]} 29. Nf3 {[%clk 0:00:36]}  Bd6 {[%clk 0:01:34]} 30. Nxe5 {[%clk 0:00:34]}  Bxe5 {[%clk 0:01:35]} 31. Bxe5 {[%clk 0:00:33]}  Qxe5 {[%clk 0:01:36]} 32. Bf3 {[%clk 0:00:31]}  h6 {[%clk 0:01:31]} 33. Qb4 {[%clk 0:00:32]}  Kh7 {[%clk 0:01:24]} 34. c4 {[%clk 0:00:32]}  Qf4 {[%clk 0:01:24]} 35. Be2 {[%clk 0:00:15]}  Re8 {[%clk 0:01:21]} 36. Qc5 {[%clk 0:00:16]}  Qe5 {[%clk 0:01:16]} 37. Qxe5 {[%clk 0:00:14]}  Rxe5 {[%clk 0:01:17]} 38. Kf1 {[%clk 0:00:12]}  Bf7 {[%clk 0:01:13]} 39. Rd4 {[%clk 0:00:12]}  f5 {[%clk 0:01:06]} 40. Bd3 {[%clk 0:00:12]}  g6 {[%clk 0:01:05]} 41. h4 {[%clk 0:00:11]}  h5 {[%clk 0:01:02]} 42. Ne2 {[%clk 0:00:10]}  Rc5 {[%clk 0:01:03]} 43. Nf4 {[%clk 0:00:09]}  Nxc4 {[%clk 0:01:03]} 44. Rd7 {[%clk 0:00:08]}  Ne5 {[%clk 0:01:03]} 45. Re7 {[%clk 0:00:08]}  Kg8 {[%clk 0:00:59]} 46. b6 {[%clk 0:00:04]}  cxb6 {[%clk 0:00:56]} 47. Rxb7 {[%clk 0:00:05]}  Nxd3 {[%clk 0:00:56]} 48. Nxd3 {[%clk 0:00:05]}  Bc4 {[%clk 0:00:57]} 49. Rd7 {[%clk 0:00:05]}  b5 {[%clk 0:00:25]} 50. Ke1 {[%clk 0:00:05]}  Bxd3 {[%clk 0:00:25]} 51. Rxd3 {[%clk 0:00:05]}  b4 {[%clk 0:00:25]} 52. Rb3 {[%clk 0:00:05]}  Rc4 {[%clk 0:00:22]} 53. g3 {[%clk 0:00:06]}  Kf7 {[%clk 0:00:23]} 54. Kd2 {[%clk 0:00:06]}  Ke6 {[%clk 0:00:23]} 55. Kd3 {[%clk 0:00:07]}  Kd5 {[%clk 0:00:24]} 56. Rb1 {[%clk 0:00:07]}  Rc3+ {[%clk 0:00:24]} 57. Kd2 {[%clk 0:00:07]}  Kc4 {[%clk 0:00:25]} 58. Re1 {[%clk 0:00:08]}  b3 {[%clk 0:00:23]} 59. Re6 {[%clk 0:00:08]}  Rc2+ {[%clk 0:00:23]} 60. Ke3 {[%clk 0:00:08]}  b2 {[%clk 0:00:23]} 61. Rb6 {[%clk 0:00:08]}  Kc3 {[%clk 0:00:23]} 62. Rc6+ {[%clk 0:00:09]}  Kb3 {[%clk 0:00:23]} 63. Rb6+ {[%clk 0:00:10]}  Ka2 {[%clk 0:00:23]} 64. Ra6+ {[%clk 0:00:10]}  Kb1 {[%clk 0:00:24]} 65. Rb6 {[%clk 0:00:11]}  Kc1 {[%clk 0:00:24]} 0-1


[Site "https://www.chess.com"]

[Event "Titled Tuesday Blitz January 03 Early 2023"]
[White "Abasov, Nijat"]
[Black "Fernandez Guillen, Ernesto J."]
[WhiteFideId "13402960"]
[BlackFideId "3512428"]
[WhiteElo "2634"]
[BlackElo "2477"]
[Result "1-0"]
[Round "04"]
[TimeControl "180+2"]
[Date "2023.01.03"]
[WhiteClock "0:00:08"]
[BlackClock "0:00:04"]

1. d4 {[%clk 0:03:00]}  Nf6 {[%clk 0:02:54]} 2. Nf3 {[%clk 0:02:59]}  g6 {[%clk 0:02:54]} 3. g3 {[%clk 0:02:56]}  d5 {[%clk 0:02:54]} 4. Bg2 {[%clk 0:02:54]}  Bg7 {[%clk 0:02:55]} 5. c4 {[%clk 0:02:53]}  O-O {[%clk 0:02:53]} 6. O-O {[%clk 0:02:52]}  c6 {[%clk 0:02:53]} 7. Qb3 {[%clk 0:02:47]}  dxc4 {[%clk 0:02:52]} 8. Qxc4 {[%clk 0:02:47]}  Nbd7 {[%clk 0:02:53]} 9. Rd1 {[%clk 0:02:44]}  Nb6 {[%clk 0:02:52]} 10. Qc3 {[%clk 0:02:31]}  Bf5 {[%clk 0:02:47]} 11. Qe1 {[%clk 0:02:19]}  Bc2 {[%clk 0:02:09]} 12. Rd2 {[%clk 0:02:19]}  Bf5 {[%clk 0:01:57]} 13. b3 {[%clk 0:01:59]}  Ne4 {[%clk 0:01:51]} 14. Rd1 {[%clk 0:01:59]}  Qc7 {[%clk 0:01:47]} 15. Nh4 {[%clk 0:01:48]}  Rad8 {[%clk 0:01:46]} 16. Nxf5 {[%clk 0:01:43]}  gxf5 {[%clk 0:01:47]} 17. Bb2 {[%clk 0:01:43]}  e5 {[%clk 0:01:28]} 18. f3 {[%clk 0:01:16]}  Nf6 {[%clk 0:00:52]} 19. dxe5 {[%clk 0:01:16]}  Nfd5 {[%clk 0:00:53]} 20. Qd2 {[%clk 0:01:15]}  Bxe5 {[%clk 0:00:47]} 21. Qg5+ {[%clk 0:00:45]}  Kh8 {[%clk 0:00:46]} 22. Qc1 {[%clk 0:00:40]}  f6 {[%clk 0:00:34]} 23. Na3 {[%clk 0:00:38]}  Bxb2 {[%clk 0:00:28]} 24. Qxb2 {[%clk 0:00:39]}  Qe5 {[%clk 0:00:28]} 25. Qxe5 {[%clk 0:00:35]}  fxe5 {[%clk 0:00:29]} 26. Kf2 {[%clk 0:00:35]}  f4 {[%clk 0:00:29]} 27. Bh3 {[%clk 0:00:33]}  Ne3 {[%clk 0:00:29]} 28. Rd3 {[%clk 0:00:30]}  Kg7 {[%clk 0:00:28]} 29. Rc1 {[%clk 0:00:26]}  Kf6 {[%clk 0:00:25]} 30. Nc2 {[%clk 0:00:20]}  Nxc2 {[%clk 0:00:18]} 31. Rxc2 {[%clk 0:00:21]}  Rxd3 {[%clk 0:00:18]} 32. exd3 {[%clk 0:00:22]}  Rd8 {[%clk 0:00:18]} 33. Ke2 {[%clk 0:00:21]}  Nd5 {[%clk 0:00:19]} 34. Rc4 {[%clk 0:00:21]}  h5 {[%clk 0:00:18]} 35. Kd2 {[%clk 0:00:17]}  h4 {[%clk 0:00:18]} 36. gxf4 {[%clk 0:00:14]}  Nxf4 {[%clk 0:00:17]} 37. Bf1 {[%clk 0:00:14]}  Rd5 {[%clk 0:00:13]} 38. Ke3 {[%clk 0:00:13]}  c5 {[%clk 0:00:13]} 39. b4 {[%clk 0:00:11]}  b6 {[%clk 0:00:13]} 40. bxc5 {[%clk 0:00:11]}  Rxc5 {[%clk 0:00:13]} 41. Ra4 {[%clk 0:00:09]}  a5 {[%clk 0:00:12]} 42. d4 {[%clk 0:00:10]}  Nd5+ {[%clk 0:00:10]} 43. Kd2 {[%clk 0:00:08]}  Rc3 {[%clk 0:00:04]} 44. dxe5+ {[%clk 0:00:07]}  Kxe5 {[%clk 0:00:05]} 45. Rxh4 {[%clk 0:00:08]}  Ra3 {[%clk 0:00:04]} 46. Rh5+ {[%clk 0:00:08]} 1-0


[Site "https://www.chess.com"]

[Event "Titled Tuesday Blitz January 03 Early 2023"]
[White "Naroditsky, Daniel"]
[Black "Krivonosov, Oleg"]
[WhiteFideId "2026961"]
[BlackFideId "11600349"]
[WhiteElo "2618"]
[BlackElo "2359"]
[Result "1-0"]
[Round "04"]
[TimeControl "180+2"]
[Date "2023.01.03"]
[WhiteClock "0:00:09"]
[BlackClock "0:00:01"]

1. e4 {[%clk 0:03:00]}  e5 {[%clk 0:02:59]} 2. Nf3 {[%clk 0:03:01]}  Nc6 {[%clk 0:02:59]} 3. Bb5 {[%clk 0:03:02]}  Nf6 {[%clk 0:02:58]} 4. O-O {[%clk 0:03:03]}  Nxe4 {[%clk 0:02:57]} 5. d4 {[%clk 0:03:04]}  Nd6 {[%clk 0:02:56]} 6. Ba4 {[%clk 0:03:04]}  e4 {[%clk 0:02:55]} 7. Ne5 {[%clk 0:03:05]}  Be7 {[%clk 0:02:54]} 8. Nc3 {[%clk 0:03:05]}  O-O {[%clk 0:02:53]} 9. Re1 {[%clk 0:03:05]}  a6 {[%clk 0:02:51]} 10. Bf4 {[%clk 0:02:55]}  b5 {[%clk 0:02:46]} 11. Bb3 {[%clk 0:02:56]}  Na5 {[%clk 0:02:44]} 12. Bd5 {[%clk 0:02:41]}  c6 {[%clk 0:02:43]} 13. Bxe4 {[%clk 0:02:41]}  Nxe4 {[%clk 0:02:42]} 14. Nxe4 {[%clk 0:02:42]}  d6 {[%clk 0:02:35]} 15. Nd3 {[%clk 0:02:42]}  d5 {[%clk 0:02:29]} 16. Nec5 {[%clk 0:02:37]}  Bf5 {[%clk 0:02:22]} 17. b3 {[%clk 0:02:18]}  Bxd3 {[%clk 0:02:16]} 18. Nxd3 {[%clk 0:02:17]}  Bd6 {[%clk 0:02:11]} 19. Qg4 {[%clk 0:02:10]}  Bxf4 {[%clk 0:02:03]} 20. Nxf4 {[%clk 0:02:11]}  Qc8 {[%clk 0:01:57]} 21. Qg3 {[%clk 0:02:04]}  Qf5 {[%clk 0:01:54]} 22. Re5 {[%clk 0:01:59]}  Qxc2 {[%clk 0:01:46]} 23. Nh5 {[%clk 0:01:59]}  g6 {[%clk 0:01:37]} 24. Nf6+ {[%clk 0:01:58]}  Kg7 {[%clk 0:01:36]} 25. Rh5 {[%clk 0:01:52]}  Qe2 {[%clk 0:01:04]} 26. Qg5 {[%clk 0:01:21]}  Rh8 {[%clk 0:00:55]} 27. Ng4 {[%clk 0:01:19]}  Qe6 {[%clk 0:00:33]} 28. Qh6+ {[%clk 0:01:18]}  Kg8 {[%clk 0:00:32]} 29. Rh4 {[%clk 0:00:57]}  Re8 {[%clk 0:00:26]} 30. h3 {[%clk 0:00:56]}  Nb7 {[%clk 0:00:21]} 31. Qf4 {[%clk 0:00:55]}  Kg7 {[%clk 0:00:19]} 32. Qh6+ {[%clk 0:00:54]}  Kg8 {[%clk 0:00:19]} 33. Ne5 {[%clk 0:00:52]}  Nd6 {[%clk 0:00:15]} 34. Qd2 {[%clk 0:00:41]}  f6 {[%clk 0:00:11]} 35. Nd3 {[%clk 0:00:35]}  Nf5 {[%clk 0:00:09]} 36. Rf4 {[%clk 0:00:30]}  Qe2 {[%clk 0:00:08]} 37. Qc3 {[%clk 0:00:31]}  Qe6 {[%clk 0:00:03]} 38. Rc1 {[%clk 0:00:28]}  Ne7 {[%clk 0:00:02]} 39. Re1 {[%clk 0:00:27]}  Qd6 {[%clk 0:00:01]} 40. Rf3 {[%clk 0:00:17]}  Kg7 {[%clk 0:00:01]} 41. Rfe3 {[%clk 0:00:17]}  Kf7 {[%clk 0:00:01]} 42. Qa5 {[%clk 0:00:09]} 1-0


[Site "https://www.chess.com"]